Cogmind - Beta 13 @@@ ROGUE MODE // 2024.05.28 @ 22:23:13 Player: Beef Result: Destroyed by S-10 Pest with Light Assault Rifle Performance ------------- Evolutions (1) 500 Regions Visited (2) 400 Robots Destroyed (8) 40 Value Destroyed (205) 205 Prototype IDs (0) 0 Alien Tech Used (0) 0 Bonus (0) 0 TOTAL SCORE: 1145 Bonus ------- None Cogmind --------- Core Integrity 0/400 Matter 296/300 Energy 100/100 System Corruption 0% Temperature Cool (3) Movement Flying (40) Location -9/Materials Parts ------- > --- POWER (1) -------- (None) > --- PROPULSION (2) --- Flight Unit > --- UTILITY (4) ------ Hacking Suite > --- WEAPON (2) ------- (None) > --- INVENTORY (5) ---- Light Ion Engine Aluminum Leg Compact Wheel Compact Wheel Datajack Peak State ------------ > --- POWER ------------ Ion Engine > --- PROPULSION ------- Compact Wheel Compact Wheel > --- UTILITY ---------- Small Storage Unit Hacking Suite > --- WEAPON ----------- Assault Rifle Light Assault Rifle > --- INVENTORY -------- Aluminum Leg Aluminum Leg Compact Wheel EM Pulse Gun [Rating: 9] Favorites ----------- Power Ion Engine Engine Ion Engine Propulsion Compact Wheel Leg Aluminum Leg Wheel Compact Wheel Hover Unit Hover Unit Flight Unit Flight Unit Utility Hacking Suite Device Terrain Scanner Storage Small Storage Unit Hackware Hacking Suite Weapon Assault Rifle Energy Gun EM Pulse Gun Ballistic Gun Assault Rifle Build | -11 -10 -9 ------- Run | Yrd Mat Mat Slots Evolved 2 | . . 2 Power . | . . . Propulsion . | . . . Utility 2 | . . 2 Weapon . | . . . Parts Attached 22 | 7 5 10 Power 2 | 1 . 1 Engine 2 | 1 . 1 Core . | . . . Reactor . | . . . Propulsion 12 | 2 3 7 Treads . | . . . Leg 2 | 2 . . Wheel 4 | . 3 1 Hover 5 | . . 5 Flight 1 | . . 1 Utility 4 | 1 2 1 Device 2 | . 1 1 Storage 1 | 1 . . Processor . | . . . Hackware 1 | . 1 . Protection . | . . . Artifact . | . . . Weapon 4 | 3 . 1 Energy Gun 2 | 1 . 1 Energy Cannon . | . . . Ballistic Gun 2 | 2 . . Ballistic Cannon . | . . . Launcher . | . . . Special Weapon . | . . . Impact Weapon . | . . . Slashing Weapon . | . . . Piercing Weapon . | . . . Special Melee Weapon . | . . . Unidentified Prototypes . | . . . Parts Lost 9 | . 1 8 Power 1 | . . 1 Propulsion 3 | . 1 2 Utility 2 | . . 2 Weapon 3 | . . 3 Highest Loss Streak 8 | . 1 8 To Critical Strikes . | . . . Average Slot Usage (%) 82 | . 96 63 Engine 11 | . 14 8 Wheel 22 | . 27 14 Hover 2 | . . 6 Device 8 | . 8 8 Storage 3 | . 5 . Hackware 11 | . 11 11 Ballistic Gun 20 | . 28 11 Naked Turns . | . . . Heaviest Build 13 | 13 13 9 Greatest Support 32 | 20 32 32 Greatest Overweight (x) 1 | . . 1 Average Overweight (x) . | . . . Largest Inventory Capacity 8 | 8 8 5 Average Capacity 5 | 6 6 5 Most Carried 6 | 3 6 5 Average Carried 4 | 1 4 4 Final Capacity 8 | 8 5 5 Final Carried 5 | 3 5 5 Class Distribution -------------------- 100% | Mutant Dominant Class ---------------- Mutant | -10/Materials Mutant | -9/Materials Resources | -11 -10 -9 ----------- Run | Yrd Mat Mat Matter Collected 496 | 101 216 179 Remotely . | . . . Salvage Created 402 | . 151 251 Parts 20 | . 13 7 Haulers Intercepted 1 | . 1 . Recyclers Shooed . | . . . Parts Field Recycled . | . . . Retrieved Matter . | . . . Parts Self-Destructed . | . . . Prevented . | . . . Kills | -11 -10 -9 ------- Run | Yrd Mat Mat Combat Hostiles Destroyed 5 | . 2 3 Guns 4 | . 2 2 Classes Destroyed 5 | . 3 2 Hauler 1 | . 1 . Recycler 1 | . . 1 Operator 1 | . 1 . Grunt 4 | . 2 2 Sentry 1 | . . 1 Best Kill Streak 3 | . 2 3 Combat Bots Only 3 | . 2 3 Max Kills in Single Turn 1 | . 1 1 Gunslinging . | . . . Exploded . | . . . Melee . | . . . Uniques/NPCs Destroyed . | . . . Combat | -11 -10 -9 -------- Run | Yrd Mat Mat Hostile Shots Fired 128 | . 6 122 Missed 40 | . . 40 Damage Taken 946 | . 67 879 Core 424 | . 22 402 Absorbed by Shields . | . . . Core Remaining (%) 95 | 100 91 . Volleys Fired 45 | . 19 26 Largest 2 | . 2 2 Hottest 60 | . 40 60 Shots Fired 78 | . 38 40 Gun 78 | . 38 40 Cannon . | . . . Launcher . | . . . Special . | . . . Kinetic 65 | . 38 27 Thermal . | . . . Explosive . | . . . Electromagnetic 13 | . . 13 Robot Hit Streak 9 | . 7 9 Robot Miss Streak 4 | . 3 4 Penetration Max . | . . . Secondary Targets . | . . . Shots Hit Robots 46 | . 22 24 Core Hits 19 | . 10 9 Critical Kills 1 | . 1 . Critical Parts Destroyed . | . . . Critical Strikes 1 | . 1 . Destroy 1 | . 1 . Melee Attacks . | . . . Impact . | . . . Slashing . | . . . Piercing . | . . . Sneak Attacks . | . . . Combat Hostiles . | . . . Follow-up Attacks . | . . . Damage Inflicted 477 | . 204 273 Guns 470 | . 204 266 Cannons . | . . . Explosions . | . . . Melee . | . . . Ramming 7 | . . 7 Kinetic 340 | . 204 136 Thermal . | . . . Explosive . | . . . Electromagnetic 130 | . . 130 Impact . | . . . Slashing . | . . . Piercing . | . . . Highest Corruption 1 | . 1 . Average Corruption 1 | . 1 . Corruption Purged . | . . . Corruption Blocked . | . . . Effects 1 | . 1 . Heat Flow Errors 1 | . 1 . Overload Shots . | . . . Overflow Damage . | . . . Projectiles . | . . . Explosions . | . . . Melee . | . . . Knockbacks . | . . . Impact . | . . . Kinetic . | . . . Secondary . | . . . Self-Inflicted Damage 3 | . . 3 Shots . | . . . Rammed 2 | . . 2 Targets Rammed 2 | . . 2 Kicked . | . . . Crushed . | . . . Highest Temperature 175 | . 175 33 Average Temperature 25 | . 48 13 Received Heat Transfer 366 | . 36 330 Siege Activations . | . . . Robots Corrupted 1 | . . 1 Combat Hostiles 1 | . . 1 Parts Fried . | . . . Impact Corruptions . | . . . Robots Melted . | . . . Combat Hostiles . | . . . Parts Melted . | . . . Heat Transferred . | . . . Parts Sabotaged . | . . . Parts Stolen . | . . . Parts Stripped . | . . . Power Chain Reactions . | . . . Alert | -11 -10 -9 ------- Run | Yrd Mat Mat Peak Influence 157 | . 66 157 Initial 27 | . . 27 Average 49 | . 43 76 Maximum Alert Level . | . . . Low Security (%) 100 | 100 100 100 Level 1 . | . . . Level 2 . | . . . Level 3 . | . . . Level 4 . | . . . Level 5 . | . . . High Security . | . . . Max Security . | . . . Squads Dispatched 4 | . 1 3 Investigation . | . . . Extermination . | . . . Reinforcement 4 | . 1 3 Assault . | . . . Garrison . | . . . Intercept . | . . . Searches Triggered . | . . . Construction Impeded . | . . . Haulers Reinforced . | . . . Active Scanning Responses . | . . . Cargo Convoy Interrupts . | . . . Stealth | -11 -10 -9 --------- Run | Yrd Mat Mat Distress Signals 3 | . . 3 Communications Jammed . | . . . Distress Signals . | . . . Times Spotted 33 | . 6 27 Peak Tracking Total 13 | . 2 13 Tactical Retreats 3 | . . 3 Traps | -11 -10 -9 ------- Run | Yrd Mat Mat Traps Triggered 1 | . 1 . Indirectly . | . . . Trap Hack Attempts . | . . . Triggered . | . . . Disarmed . | . . . Reprogrammed . | . . . Reused . | . . . Traps Extracted . | . . . Installed . | . . . Triggered . | . . . Machines | -11 -10 -9 ---------- Run | Yrd Mat Mat Machines Disabled . | . . . Max in Single Turn . | . . . Machines Repaired . | . . . Machines Dismantled . | . . . Machines Sabotaged . | . . . Overloaded Fab Kills . | . . . Hacking | -11 -10 -9 --------- Run | Yrd Mat Mat Machines Accessed 2 | . 2 . Terminals 2 | . 2 . Fabricators . | . . . Repair Stations . | . . . Recycling Units . | . . . Scanalyzers . | . . . Garrison Access . | . . . Total Hacks 6 | . 6 . Successful 2 | . 2 . Failed 4 | . 4 . Catastrophic 1 | . 1 . Database Lockouts . | . . . Manual 4 | . 4 . Terminals 6 | . 6 . Fabricators . | . . . Repair Stations . | . . . Recycling Units . | . . . Scanalyzers . | . . . Garrison Access . | . . . Terminal Hacks 2 | . 2 . Branch Access Points 1 | . 1 . Alert Level 1 | . 1 . Fabricator Hacks . | . . . Repair Station Hacks . | . . . Recycling Unit Hacks . | . . . Scanalyzer . | . . . Garrison Access Hacks . | . . . Unauthorized Hacks . | . . . Terminals . | . . . Fabricators . | . . . Repair Stations . | . . . Recycling Units . | . . . Scanalyzers . | . . . Garrison Access . | . . . Data Cores Recovered . | . . . Used . | . . . Hacking Detections 2 | . 2 . Full Trace Events 1 | . 1 . Feedback Events . | . . . Feedback Blocked . | . . . Robot Schematics Acquired . | . . . Robots Built . | . . . Authchips . | . . . Time . | . . . Total Robot Build Rating . | . . . Part Schematics Acquired . | . . . Parts Built . | . . . Authchips . | . . . Time . | . . . Total Part Build Rating . | . . . Parts Repaired . | . . . Time . | . . . Parts Recycled . | . . . Recycled Matter . | . . . Retrieved Matter . | . . . Retrieved Components . | . . . Parts Scanalyzed . | . . . Part Schematics Acquired . | . . . Parts Damaged . | . . . Bothacking | -11 -10 -9 ------------ Run | Yrd Mat Mat Used RIF Installer . | . . . Robots Hacked . | . . . Non-combat . | . . . Combat . | . . . Robot Hacks Applied . | . . . Relay Couplers Released . | . . . Fabnet Peak Effective % . | . . . Robots Rewired . | . . . Allies Hacked . | . . . Hacks Repelled . | . . . Allies | -11 -10 -9 -------- Run | Yrd Mat Mat Total Allies . | . . . Largest Group . | . . . Highest-Rated Group . | . . . Highest-Rated Ally . | . . . Total Orders . | . . . Ally Attacks . | . . . Total Damage . | . . . Kills . | . . . Allies Corrupted . | . . . Allies Melted . | . . . Intel | -11 -10 -9 ------- Run | Yrd Mat Mat Robot Analysis Total . | . . . Derelict Logs Recovered . | . . . Drone Launches . | . . . Drone Recoveries . | . . . Exploration | -11 -10 -9 ------------- Run | Yrd Mat Mat Turns Passed 557 | 69 284 204 Spaces Moved 415 | 51 216 148 Core 6 | 6 . . Treads . | . . . Legs 45 | 45 . . Wheels 262 | . 216 46 Hover 60 | . . 60 Flight 42 | . . 42 Fastest Speed 40 | 50 100 40 Average Speed 93 | 111 100 76 Slowest Speed 125 | 120 100 125 Overloaded Moves . | . . . Propulsion Burnouts . | . . . Robots Hopped 1 | . . 1 Cave-ins Triggered . | . . . Exploration Rate (%) 22 | 3 45 20 Regions Visited 2 Branch Regions . Pre-discovered Areas . | . . . Known Exits Taken . | . . . Unknown Exits Taken 2 | 1 1 . Scrap Searched . | . . . Spaces Dug . | . . . Terrain Destroyed . | . . . Melee . | . . . Projectile . | . . . AOE . | . . . Terrain Rammed . | . . . Walls Destroyed . | . . . Machines Disabled . | . . . Actions | -11 -10 -9 --------- Run | Yrd Mat Mat Total 512 | 60 250 202 Wait 13 | . 3 10 Move 411 | 50 215 146 Hop 1 | . . 1 Pick Up 8 | 2 4 2 Fast Attach 12 | 7 2 3 Attach 7 | . 3 4 Detach 4 | 1 2 1 Swap 3 | . . 3 Drop 6 | . 2 4 Fire 45 | . 19 26 Melee . | . . . Ram 2 | . . 2 Kick . | . . . Crush . | . . . Escape Stasis . | . . . Rewire . | . . . Trap . | . . . Miscellaneous . | . . . Route ------- -11/Scrapyard -10/Materials (discovered 2 exits: [*Mat] / Min) -9/Materials History --------- Turn | Location | Event 7 | -11/Scrapyard | Discovered new exit (range 15) 70 | -11/Scrapyard | Entered Materials 230 | -10/Materials | Identified exit to Mines 274 | -10/Materials | Discovered new exit (range 15) 306 | -10/Materials | Build established: Mutant 354 | -10/Materials | Entered another Materials area 354 | -9/Materials | Evolved 2 slots: Utility x2 505 | -9/Materials | Core integrity fell below 50% 525 | -9/Materials | Core integrity fell below 20% 558 | -9/Materials | Destroyed by S-10 Pest with Light Assault Rifle Last Messages --------------- 00521_ K-01 Serf collects debris. 00522_ Dropped Ion Engine. 00522_ Acquired Lgt. Ion Engine. 00524_ K-01 Serf collects debris. 00527_ ALERT: Hostiles spotted, dispatching reinforcements to Terminal M004. 00528_ K-01 Serf collects debris. 00530_ K-01 Serf destroyed. 00530_ Slammed into K-01 Serf. 00530_ K-01 Serf cleans the Nuclear Reactor. 00531_ K-01 Serf collects debris. 00533_ Imp. Hover Unit destroyed. 00533_ Slammed into K-01 Serf. 00540_ Acquired Flight Unit. 00542_ ALERT: Hostiles spotted, dispatching reinforcements to Terminal M010. 00543_ K-01 Serf destroyed. 00543_ K-01 Serf collects debris. 00544_ Acquired 20 matter. 00550_ Hover Unit destroyed. Map ----- +----------------------------------------------------+ | ?????????????????????????????????????? | | ?????????????????????????????????????? | | ?????????????????????????????????????? | | ?????????????????????????????????????? | | ?????????????????????????????????????? | | ?????????????????????????????????????? | | ?????????????????????????????????????? | | ?????????????????????????????????????? | | ???????? ??????????????????????????? | | ???????? ??????????????????????????? | | ???????? #?????????????????????????? | | ???????# #?????????????????????????? | | ???????# #?????????????????????????? | | ???????# #?????????????????#???????? | | ???????# #???????????????? #???????? | | ??????## #??????????????? ##??????? | | ??????# ############+## !#??????? | | ??????+ #??????? | | ??????# = #??????? | | ??????# """ #### ### #??????? | | ???????# """ /#??# ####+#####????? | | ???????#= """ /[#??# # #????? | | ???????# #??# # #????? | | ???????# #??# # !!| #????? | | ######## #######+##??# # !!| #????? | | # #???????????# # @ !|| #????? | | # #???????????# # ##???? | | # #???????????# # ] Y#???? | | # #???????????# # ##???? | | ######+# #???????????# # #????? | | ???# #???????????# #####s########? | | ???# #???????????# #?# # # | | ???# #???????????# ### # # | | ???# #???????????# + # | | ???# *%=#???######### ### # # | | ???## =## ? % # #?# ######? | | ????#=% ## # #?###+###?????? | | ????# ## """ """ # #???# ??????? | | ????# ## """"""""" # ##??# ????? | | ????# #? """"" # #???# ] #??? | | ????# #??? # #???# #??? | | ???## ##?? ? ??# #???# #??? | | #### #??####+##### ##### ! #??? | | #??# ########??? | | #### #??# #?????????? | | ???# #??# #?????????? | | ???# #??# #######+####?????????? | | ???## ##??# ## #?????????? | | ??#?# #???# ## #?????????? | | ?#### = #???# ## """ """ #?????????? | +----------------------------------------------------+ Best States ------------- Heat Dissipation 38 Energy Generation 10 Energy Capacity 250 Matter Stores 291 Matter Capacity 300 Sight Range 16 Terrain Scan Range 14 Terrain Scan Density 10 Evasion (%) 62 Offensive Hacking 10 Item Schematics ----------------- None Robot Schematics ------------------ None Fabricated ------------ Nothing Alien Tech Used ----------------- None Achievements -------------- None Challenges ------------ None Game ------ Seed SmallLightningFragment Manual? 0 Play Time 00:07:51 Cumulative 36.4 hours Start 2024.05.28 @ 22:17:58 End 2024.05.28 @ 22:23:13 Sessions 1 Manual Loads 0 Difficulty Rogue Special Mode None Game No. 34 Rogue 34 Adventurer 0 Explorer 0 Win Type - Total 0 Types 0/0/0/0/0/0/0/0/0 Lore% 34 Gallery% 42 Achievement% 30 Wizard Run 0 Options --------- Layout 0 ASCII 0 Keyboard 1 Movement Numpad Keybinds 0 Fullscreen 2 Font 18/SmallcapsGlow Map View 76x50 Zoom Use 0% Tactical HUD 1 Map Filters NONE Filters NONE Steam 1 RUN: 83afe633-8f68-43ce-8010-5878ca694440